Cogmind - Beta 9.2 @@@ ROGUE MODE // 2019.11.30 @ 10:38:17 Player: Cipherpunk Result: Destroyed by G-34 Mercenary with Small Laser Performance ------------- Evolutions (1) 500 Regions Visited (3) 600 Robots Destroyed (97) 485 Value Destroyed (2098) 2098 Prototype IDs (3) 60 Alien Tech Used (0) 0 Bonus (175) 175 TOTAL SCORE: 3918 Bonus ------- High Alert Combat Kills 175 Cogmind --------- Core Integrity 0/400 Matter 276/300 Energy 265/265 System Corruption 2% Temperature Cool (6) Movement Walking (150) Ox1 Location -9/Storage Parts ------- > --- POWER (1) -------- Improved Ion Engine > --- PROPULSION (3) --- Aluminum Leg Aluminum Leg Aluminum Leg > --- UTILITY (3) ------ Large Storage Unit Large Storage Unit Core Shielding > --- WEAPON (2) ------- Heavy Assault Rifle Heavy Assault Rifle > --- INVENTORY (16) --- Improved Flight Unit Medium Storage Unit Improved Sensor Array Improved Signal Interpreter Transport Network Coupler ECM Suite Improved Utility Shielding Improved Utility Shielding Medium Armor Plating Shield Generator Hacking Suite Heavy Assault Rifle Mini Grenade Launcher Datajack Peak State ------------ > --- POWER ------------ Heavy Ion Engine > --- PROPULSION ------- Aluminum Leg Aluminum Leg Aluminum Leg > --- UTILITY ---------- Medium Storage Unit Large Storage Unit Large Storage Unit > --- WEAPON ----------- Heavy Assault Rifle Heavy Assault Rifle > --- INVENTORY -------- Aluminum Leg Aluminum Leg Aluminum Leg VTOL Module VTOL Module Transport Network Coupler ECM Suite ECM Suite ECM Suite Improved Utility Shielding Improved Utility Shielding Light Armor Plating Hacking Suite Beam Rifle Heavy Assault Rifle Heavy Assault Rifle Heavy Assault Rifle Mini Grenade Launcher Datajack Mining Laser [Rating: 16] Favorites ----------- Power Light Ion Engine Engine Light Ion Engine Propulsion Aluminum Leg Leg Aluminum Leg Utility Large Storage Unit Storage Large Storage Unit Protection Core Shielding Weapon EM Pulse Gun Energy Gun EM Pulse Gun Ballistic Gun Heavy Assault Rifle Launcher Mini Grenade Launcher Special Weapon Mining Laser Special Melee Weapon Datajack Build | -11 -10 -9 -9 ------- Run | Scr Mat Mat Sto Slots Evolved 2 | . . 2 . Power . | . . . . Propulsion 1 | . . 1 . Utility 1 | . . 1 . Weapon . | . . . . Parts Attached 94 | 7 18 39 30 Power 13 | 1 3 4 5 Engine 13 | 1 3 4 5 Core . | . . . . Reactor . | . . . . Propulsion 29 | 2 3 14 10 Treads . | . . . . Leg 29 | 2 3 14 10 Wheel . | . . . . Hover . | . . . . Flight . | . . . . Utility 15 | 1 7 4 3 Device . | . . . . Storage 12 | 1 7 4 . Processor . | . . . . Hackware . | . . . . Protection 3 | . . . 3 Artifact . | . . . . Weapon 37 | 3 5 17 12 Energy Gun 12 | 2 4 6 . Energy Cannon . | . . . . Ballistic Gun 15 | 1 . 7 7 Ballistic Cannon . | . . . . Launcher 4 | . . 4 . Special Weapon 4 | . 1 . 3 Impact Weapon . | . . . . Slashing Weapon . | . . . . Piercing Weapon . | . . . . Special Melee Weapon 2 | . . . 2 Unidentified Prototypes 1 | . . . 1 Parts Lost 21 | . 1 11 9 Power 3 | . . 2 1 Propulsion 10 | . . 4 6 Utility . | . . . . Weapon 8 | . 1 5 2 Highest Loss Streak 6 | . 1 6 3 Average Slot Usage (%) 98 | . 99 96 98 Engine 12 | . 14 10 11 Leg 30 | . 28 31 32 Storage 29 | . 27 33 27 Protection 1 | . . . 5 Energy Gun 13 | . 24 9 . Ballistic Gun 8 | . 1 11 17 Special Weapon 1 | . 2 . 3 Naked Turns . | . . . . Heaviest Build 55 | 11 55 49 54 Greatest Support 30 | 20 20 30 30 Greatest Overweight (x) 15 | 3 2 15 5 Average Overweight (x) 1 | . 1 1 1 Largest Inventory Capacity 20 | 6 18 20 20 Average Capacity 15 | 5 11 19 17 Most Carried 20 | 2 16 20 20 Average Carried 14 | 1 10 17 17 Final Capacity 20 | 6 16 20 16 Final Carried 20 | 2 15 20 14 Class Distribution -------------------- 52% | Mutant 38% | Hauler-Mutant 9% | Scavenger-Mutant Dominant Class ---------------- Mutant | -10/Materials Hauler-Mutant | -9/Materials Mutant | -9/Storage Resources | -11 -10 -9 -9 ----------- Run | Scr Mat Mat Sto Matter Collected 1707 | 227 266 583 631 Remotely . | . . . . Salvage Created 2833 | . 677 1272 884 Parts 223 | . 51 101 71 Haulers Intercepted 6 | . 2 2 2 Recyclers Shooed 1 | . . . 1 Parts Field Recycled . | . . . . Retrieved Matter . | . . . . Parts Self-Destructed . | . . . . Prevented . | . . . . Kills | -11 -10 -9 -9 ------- Run | Scr Mat Mat Sto Combat Hostiles Destroyed 71 | . 16 33 22 Guns 52 | . 14 18 20 Cannons 2 | . . . 2 AOE 16 | . 1 15 . Classes Destroyed 12 | . 7 5 . Worker 4 | . . 4 . Builder 5 | . 1 4 . Tunneler 1 | . . 1 . Hauler 6 | . 2 2 2 Mechanic 1 | . 1 . . Operator 2 | . 1 1 . Watcher 7 | . 2 4 1 Swarmer 31 | . 9 15 7 Grunt 25 | . 7 11 7 Brawler 2 | . . 2 . Protector 1 | . . 1 . Sentry 12 | . . 4 8 Best Kill Streak 9 | . 5 9 5 Combat Bots Only 6 | . 3 6 5 Max Kills in Single Turn 4 | . 3 4 2 Gunslinging 1 | . . . 1 Exploded 4 | . 1 4 . Melee . | . . . . Uniques/NPCs Destroyed . | . . . . Combat | -11 -10 -9 -9 -------- Run | Scr Mat Mat Sto Damage Taken 3482 | . 496 1518 1468 Core 487 | . 87 249 151 Absorbed by Shields . | . . . . Core Remaining (%) 82 | 100 65 . . Volleys Fired 214 | . 55 79 80 Largest 2 | . 2 2 2 Hottest 140 | . 140 80 123 Shots Fired 400 | . 106 156 138 Gun 371 | . 103 149 119 Cannon . | . . . . Launcher 7 | . . 7 . Special 22 | . 3 . 19 Kinetic 207 | . 16 72 119 Thermal 42 | . 23 . 19 Explosive 7 | . . 7 . Electromagnetic 144 | . 67 77 . Robot Hit Streak 15 | . 7 15 14 Robot Miss Streak 4 | . 4 3 3 Penetration Max . | . . . . Secondary Targets 7 | . 2 3 2 Max Gunslinging Chain 1 | . 1 1 1 Shots Hit Robots 237 | . 59 94 84 Core Hits 136 | . 29 69 38 Critical Hits 3 | . 1 . 2 Critical Kills 1 | . 1 . . Critical Parts Destroyed 2 | . . . 2 Melee Attacks . | . . . . Impact . | . . . . Slashing . | . . . . Piercing . | . . . . Sneak Attacks . | . . . . Combat Hostiles . | . . . . Follow-up Attacks . | . . . . Damage Inflicted 4968 | . 916 2648 1404 Guns 3499 | . 752 1391 1356 Cannons . | . . . . Explosions 1409 | . 152 1257 . Melee . | . . . . Ramming 12 | . 12 . . Kinetic 2058 | . 105 597 1356 Thermal 575 | . 325 202 48 Explosive 1055 | . . 1055 . Electromagnetic 1268 | . 474 794 . Impact . | . . . . Slashing . | . . . . Piercing . | . . . . Highest Corruption 2 | . 2 2 2 Average Corruption 2 | . 2 2 2 Corruption Purged . | . . . . Effects 23 | . 4 9 10 Message Errors 11 | . 1 3 7 Heat Flow Errors 2 | . 1 . 1 Energy Discharges 4 | . 1 1 2 Data Loss (minor) 2 | . . 2 . Targeting Errors 3 | . 1 2 . Weapon Failures 1 | . . 1 . Overload Shots . | . . . . Overflow Damage 84 | . . 84 . Projectiles . | . . . . Explosions 84 | . . 84 . Melee . | . . . . Knockbacks . | . . . . Impact . | . . . . Kinetic . | . . . . Secondary . | . . . . Self-Inflicted Damage 97 | . . 97 . Shots 5 | . . 5 . Rammed . | . . . . Targets Rammed 1 | . 1 . . Kicked 1 | . 1 . . Crushed . | . . . . Highest Temperature 244 | . 244 87 101 Average Temperature 39 | . 56 29 18 Received Heat Transfer 1083 | . 204 492 387 Siege Activations . | . . . . Robots Corrupted . | . . . . Combat Hostiles . | . . . . Parts Fried 1 | . . 1 . Impact Corruptions . | . . . . Robots Melted 1 | . 1 . . Combat Hostiles 1 | . 1 . . Parts Melted 2 | . 2 . . Heat Transferred 968 | . 718 150 100 Parts Sabotaged . | . . . . Parts Stolen . | . . . . Parts Stripped . | . . . . Power Chain Reactions 6 | . 2 4 . Missiles Intercepted . | . . . . Alert | -11 -10 -9 -9 ------- Run | Scr Mat Mat Sto Peak Influence 592 | . 228 592 571 Average Influence 240 | . 110 319 369 Maximum Alert Level 2 | . 1 2 2 Low Security (%) 48 | 100 82 38 . Level 1 26 | . 17 14 61 Level 2 24 | . . 46 38 Level 3 . | . . . . Level 4 . | . . . . Level 5 . | . . . . High Security . | . . . . Max Security . | . . . . Squads Dispatched 10 | . 1 6 3 Investigation 1 | . . . 1 Extermination . | . . . . Reinforcement 6 | . 1 4 1 Assault 3 | . . 2 1 Garrison . | . . . . Intercept . | . . . . Construction Impeded 1 | . . 1 . Haulers Reinforced . | . . . . Stealth | -11 -10 -9 -9 --------- Run | Scr Mat Mat Sto Distress Signals 7 | . 2 4 1 Communications Jammed . | . . . . Distress Signals . | . . . . Times Spotted 117 | . 27 55 35 Peak Tracking Total 9 | . 5 9 7 Tactical Retreats 8 | . . 4 4 Traps | -11 -10 -9 -9 ------- Run | Scr Mat Mat Sto Traps Triggered 8 | . 1 4 3 Indirectly . | . . . . Trap Hack Attempts 20 | . . . 20 Triggered . | . . . . Disarmed 4 | . . 2 2 Reprogrammed . | . . . . Reused . | . . . . Traps Extracted . | . . . . Installed . | . . . . Triggered . | . . . . Machines | -11 -10 -9 -9 ---------- Run | Scr Mat Mat Sto Machines Disabled 9 | . . 6 3 Max in Single Turn 2 | . . 2 1 Machines Sabotaged . | . . . . Garrisons Compromised . | . . . . Overloaded Fab Kills . | . . . . Fab Network Shutdowns . | . . . . Hacking | -11 -10 -9 -9 --------- Run | Scr Mat Mat Sto Machines Accessed 15 | . 8 5 2 Terminals 12 | . 7 3 2 Fabricators . | . . . . Repair Stations 1 | . . 1 . Recycling Units 2 | . 1 1 . Scanalyzers . | . . . . Garrison Access . | . . . . Total Hacks 47 | . 26 16 5 Successful 22 | . 11 8 3 Failed 25 | . 15 8 2 Catastrophic 4 | . 4 . . Database Lockouts . | . . . . Manual 27 | . 16 6 5 Terminals 35 | . 21 9 5 Fabricators . | . . . . Repair Stations 3 | . . 3 . Recycling Units 9 | . 5 4 . Scanalyzers . | . . . . Garrison Access . | . . . . Terminal Hacks 7 | . 6 1 . Prototype ID Bank 1 | . 1 . . Branch Access Points 1 | . 1 . . Terminal Index 1 | . 1 . . Locate Traps 1 | . 1 . . Disarm Traps 1 | . . 1 . Transport Status 1 | . 1 . . Hauler Manifests 1 | . 1 . . Fabricator Hacks . | . . . . Repair Station Hacks 2 | . . 2 . Scan Component 1 | . . 1 . Repair 1 | . . 1 . Recycling Unit Hacks 3 | . 1 2 . Report Inventory 2 | . 1 1 . Retrieve Components 1 | . . 1 . Scanalyzer . | . . . . Garrison Access Hacks . | . . . . Unauthorized Hacks 27 | . 12 8 7 Terminals 9 | . 3 3 3 Botnet 7 | . 2 3 2 Operators 2 | . 1 . 1 Fabricators . | . . . . Repair Stations . | . . . . Recycling Units 1 | . 1 . . Monitor 1 | . 1 . . Scanalyzers . | . . . . Garrison Access . | . . . . Data Cores Recovered . | . . . . Used . | . . . . Hacking Detections 14 | . 8 4 2 Full Trace Events . | . . . . Feedback Events . | . . . . Feedback Blocked . | . . . . Robot Schematics Acquired . | . . . . Robots Built . | . . . . Matter . | . . . . Time . | . . . . Total Robot Build Rating . | . . . . Part Schematics Acquired . | . . . . Parts Built . | . . . . Matter . | . . . . Time . | . . . . Total Part Build Rating . | . . . . Parts Repaired 1 | . . 1 . Time 32 | . . 32 . Parts Recycled . | . . . . Recycled Matter . | . . . . Retrieved Matter . | . . . . Retrieved Components 3 | . . 3 . Parts Scanalyzed . | . . . . Part Schematics Acquired . | . . . . Parts Damaged . | . . . . Bothacking | -11 -10 -9 -9 ------------ Run | Scr Mat Mat Sto Used RIF Installer . | . . . . Robots Hacked . | . . . . Non-combat . | . . . . Combat . | . . . . Robot Hacks Applied . | . . . . Relay Couplers Released . | . . . . Robots Rewired . | . . . . Allies Hacked . | . . . . Hacks Repelled . | . . . . Allies | -11 -10 -9 -9 -------- Run | Scr Mat Mat Sto Total Allies . | . . . . Largest Group . | . . . . Highest-Rated Group . | . . . . Highest-Rated Ally . | . . . . Total Orders . | . . . . Ally Attacks . | . . . . Total Damage . | . . . . Kills . | . . . . Allies Corrupted . | . . . . Allies Melted . | . . . . Intel | -11 -10 -9 -9 ------- Run | Scr Mat Mat Sto Robot Analysis Total . | . . . . Derelict Logs Recovered . | . . . . Drone Launches . | . . . . Drone Recoveries . | . . . . Exploration | -11 -10 -9 -9 ------------- Run | Scr Mat Mat Sto Turns Passed 3668 | 58 1506 1247 857 Spaces Moved 1743 | 37 824 558 324 Core 9 | 8 . 1 . Treads . | . . . . Legs 1734 | 29 824 557 324 Wheels . | . . . . Hover . | . . . . Flight . | . . . . Fastest Speed 50 | 50 120 150 150 Average Speed 151 | 125 151 152 151 Slowest Speed 800 | 200 180 800 270 Overloaded Moves . | . . . . Propulsion Burnouts . | . . . . Robots Hopped . | . . . . Cave-ins Triggered 1 | . . . 1 Exploration Rate (%) 51 | 2 98 52 54 Regions Visited 3 Branch Regions 1 Pre-discovered Areas . | . . . . Known Exits Taken . | . . . . Unknown Exits Taken 3 | 1 1 1 . Scrap Searched . | . . . . Spaces Dug 12 | . 3 . 9 Terrain Destroyed 101 | . 14 76 11 Melee . | . . . . Projectile 14 | . 3 . 11 AOE 87 | . 11 76 . Actions | -11 -10 -9 -9 --------- Run | Scr Mat Mat Sto Total 2327 | 45 976 790 516 Wait 166 | . 44 88 34 Move 1740 | 36 823 557 324 Hop . | . . . . Pick Up 42 | 2 19 15 6 Fast Attach 25 | 6 4 11 4 Attach 19 | . 2 9 8 Detach 2 | . . . 2 Swap 50 | 1 12 19 18 Drop 43 | . 16 12 15 Fire 214 | . 55 79 80 Melee . | . . . . Ram . | . . . . Kick 1 | . 1 . . Crush . | . . . . Escape Stasis 5 | . . . 5 Rewire . | . . . . Trap 20 | . . . 20 Miscellaneous . | . . . . Route ------- -11/Scrapyard -10/Materials (discovered 4 exits: *Mat x3 / *Min) -9/Materials (discovered 5 exits: [*Mat x2] / [*Min x2] / *Sto) -9/Storage History --------- Turn | Location | Event 2 | -11/Scrapyard | Met Revision 17 35 | -11/Scrapyard | Discovered new exit (range 12) 59 | -11/Scrapyard | Entered Materials 313 | -10/Materials | Build established: Mutant 322 | -10/Materials | Discovered new exit (range 15) 409 | -10/Materials | Discovered new exit (range 13) 758 | -10/Materials | Discovered new exit (range 15) 944 | -10/Materials | Discovered new exit (range 11) 1131 | -10/Materials | Identified exit to Mines 1565 | -10/Materials | Entered another Materials area 1565 | -9/Materials | Evolved 2 slots: Propulsion x1, Utility x1 1632 | -9/Materials | Repaired Mni. Grenade Launcher 1808 | -9/Materials | Discovered new exit (range 16) 1859 | -9/Materials | Build established: Hauler-Mutant 1975 | -9/Materials | Discovered new exit (range 4) 2210 | -9/Materials | Lost 6 parts (1p3n2w) 2296 | -9/Materials | Core integrity fell below 50% 2311 | -9/Materials | Discovered new exit (range 16) 2435 | -9/Materials | Discovered new exit (range 16) 2746 | -9/Materials | Discovered new exit (range 16) 2765 | -9/Materials | First assault squad dispatched 2812 | -9/Materials | Entered Storage 3116 | -9/Storage | Core integrity fell below 20% 3146 | -9/Storage | Lost 3 parts (2n1w) 3172 | -9/Storage | Crushed by falling debris 3612 | -9/Storage | First assault squad dispatched 3669 | -9/Storage | Destroyed by G-34 Mercenary with Small Laser Last Messages --------------- 03608_ K-01 Serf collects debris. 03611_ Dropped Aluminum Leg. 03612_ ALERT: Significant disruption in Zone 4E, assault force dispatched. 03612_ K-01 Serf collects debris. 03623_ Triggered Alarm Trap. 03623_ An alarm sounds. 03623_ ALERT: Alarm triggered, dispatching investigation squad. 03642_ Aluminum Leg destroyed. 03644_ S-10 Pest destroyed. 03656_ Mining Laser destroyed. 03656_ U-05 Engineer lays Concrete. 03656_ S-10 Pest suffers critical hit. 03656_ Destroyed Lgt. Assault Rifle. 03658_ S-10 Pest destroyed. 03659_ U-05 Engineer builds a Wall. 03666_ C-30 ARC bursts open, deploying its payload. 03666_ B-36 Bruiser unfolds itself. 03666_ G-34 Mercenary unfolds itself. 03666_ I-25 Savior unfolds itself. 03667_ Acquired 14 matter. Map ----- +----------------------------------------------------+ | ##"""" [ #######?????????? | | ##" "" #???????????????? | | "" ##!%= #???????????????? | | "" ##/###" "###???????????????? | | "" ## #?#"R"#?????????????????? | | ??# #?#"""#?????????????????? | | ##### ########????????????????? | | % ?????????? | | #+##+#### ?????????? | | # ???????????????????????? | | # ????????????? ?????????? | | + "???????????? ?????????? | | #### "???????????? ?????????? | | #??# ??????????? ?????????? | | ###### #??????????? ?????????? | | ## ###??????????? ?????????? | | #????????????? ?????????? | | ### #????????????# #????????? | | #?##+#######?????#?# #????????? | | #?# * #???? #?# /????????? | | #?#= " "" #????!#?#=#????????? | | ###% "]!" #??? #?#[#????????? | | += "[!" #""" ###[#????????? | | ### " *" #""" ?##%##???????? | | #?# "%]" #""" ?##u#####+#??? | | #?# ="""" #""" ??#*g=gi @*#??? | | #?#*!![ ![ #""" ??#=g%b""" #??? | | #?#%%[%*%=*# ???#%""""?? #??? | | #?#+#####+## ???# "??????#??? | | ###%### ##+##### "?????????? | | ![= + "?????????? | | = # """ #??? | | ####+## ##### + #??? | | ??? ######???# # #??? | | ??? ?????????# ##########??? | | ??? "????????# T???????????? | | ??? T????????# ##??????????? | | ?? ""???????""""???????????? | | ??o ""??????????????????????? | | ?? #???????????????????????? | | ?? #???????????????????????? | | ? #???????????????????????? | | ?#T####???????????????????????? | | ?##???????????????????????????? | | ??????????????????????????????? | | ??????????????????????????????? | | ??????????????????????????????? | | ??????????????????????????????? | | ??????????????????????????????? | | ??????????????????????????????? | +----------------------------------------------------+ Best States ------------- Heat Dissipation 28 Energy Generation 14 Energy Capacity 650 Matter Stores 300 Matter Capacity 300 Sight Range 16 Terrain Scan Density 10 Armor Coverage 225 Core Shielding 20 Evasion (%) 40 Item Schematics ----------------- None Robot Schematics ------------------ None Fabricated ------------ Nothing Alien Tech Used ----------------- None Achievements -------------- None Challenges ------------ None Game ------ Seed TransportArchitectGenerator Manual? 0 Play Time 00:44:53 Cumulative 35.5 hours Start 2019.11.30 @ 09:53:32 End 2019.11.30 @ 10:38:17 Sessions 1 Manual Loads 0 Difficulty Rogue Special Mode None Game No. 32 Rogue 32 Adventurer 0 Explorer 0 Win Type - Total 0 Types 0/0/0/0/0/0/0 Lore% 16 Gallery% 38 Achievement% 23 Wizard Run 0 Options --------- ASCII 0 Keyboard 1 Movement Numpad Keybinds 0 Fullscreen 2 Font 18/SmallcapsGlow Map View 76x50 Tactical HUD 1 Map Filters NONE Filters NONE Steam 1 RUN: 3e749097-b412-4897-8ffd-b8eeb3eddedc